Cogmind - Beta 16 @@@ ROGUE MODE // 2025.12.05 @ 17:28:06 Player: Jiber Result: Destroyed by Y-45 Defender with Beam Rifle Performance ------------- Evolutions (1) 500 Regions Visited (4) 800 Robots Destroyed (6) 30 Value Destroyed (60) 60 Prototype IDs (2) 40 Alien Tech Used (0) 0 Bonus (0) 0 TOTAL SCORE: 1430 Bonus ------- None Cogmind --------- Core Integrity 0/400 Matter 160/300 Energy 69/100 System Corruption 5% Temperature Cool (27) Movement Core (100) Ox1 Location -9/Storage Parts ------- > --- POWER (1) -------- (None) > --- PROPULSION (2) --- (None) > --- UTILITY (4) ------ Sensor Array Signal Interpreter ECM Suite Utility Shielding > --- WEAPON (2) ------- (None) > --- INVENTORY (5) ---- Visual Processing Unit ECM Suite Beam Rifle Peak State ------------ > --- POWER ------------ Ion Engine > --- PROPULSION ------- Aluminum Leg Aluminum Leg > --- UTILITY ---------- Small Storage Unit Structural Scanner Signal Interpreter > --- WEAPON ----------- Assault Rifle Mining Laser > --- INVENTORY -------- EM Pulse Gun EM Pulse Gun Assault Rifle [Rating: 8] Favorites ----------- Power Ion Engine Engine Ion Engine Propulsion Aluminum Leg Leg Aluminum Leg Flight Unit Flight Unit Utility Small Storage Unit Device Structural Scanner Storage Small Storage Unit Processor Signal Interpreter Protection Utility Shielding Weapon Assault Rifle Energy Gun EM Pulse Gun Ballistic Gun Assault Rifle Special Weapon Mining Laser Build | -11 -10 -10 -9 -9 ------- Run | Yrd Mat Min Mat Sto Slots Evolved 2 | . . . 2 . Power . | . . . . . Propulsion . | . . . . . Utility 2 | . . . 2 . Weapon . | . . . . . Parts Attached 17 | 6 1 1 4 5 Power 1 | 1 . . . . Engine 1 | 1 . . . . Core . | . . . . . Reactor . | . . . . . Propulsion 3 | 2 . . . 1 Treads . | . . . . . Leg 2 | 2 . . . . Wheel . | . . . . . Hover . | . . . . . Flight 1 | . . . . 1 Utility 7 | 1 1 . 2 3 Device 4 | . 1 . . 3 Storage 1 | 1 . . . . Processor 1 | . . . 1 . Hackware . | . . . . . Protection 1 | . . . 1 . Artifact . | . . . . . Weapon 6 | 2 . 1 2 1 Energy Gun 3 | . . . 2 1 Energy Cannon . | . . . . . Ballistic Gun 2 | 2 . . . . Ballistic Cannon . | . . . . . Launcher . | . . . . . Special Weapon 1 | . . 1 . . Impact Weapon . | . . . . . Slashing Weapon . | . . . . . Piercing Weapon . | . . . . . Special Melee Weapon . | . . . . . Unidentified Prototypes . | . . . . . Parts Lost 10 | . . . 9 1 Power 1 | . . . 1 . Propulsion 3 | . . . 2 1 Utility 1 | . . . 1 . Weapon 5 | . . . 5 . Highest Loss Streak 7 | . . . 7 1 To Critical Strikes . | . . . . . Average Backups 2 | 1 1 3 2 2 Power . | . . . . . Propulsion . | . . . . . Utility . | . . . . 1 Weapon 1 | . 1 3 1 . Tool/Special . | . . . . . Unused Backups 2 | . . . . 2 Power . | . . . . . Propulsion . | . . . . . Utility 2 | . . . . 2 Weapon . | . . . . . Tool/Special . | . . . . . Average Slot Usage (%) 75 | . 90 100 73 51 Engine 8 | . 14 14 9 . Leg 16 | . 28 28 17 . Flight 2 | . . . . 9 Device 12 | . 4 14 9 20 Storage 8 | . 14 14 9 . Processor 5 | . . . 8 11 Protection 3 | . . . . 11 Energy Gun 2 | . . . 9 . Ballistic Gun 10 | . 28 14 5 . Special Weapon 3 | . . 14 4 . Peak Build Rating 8 | 6 7 7 8 7 Average Rating 5 | 3 6 7 6 4 On Entrance 4 | . 6 7 7 2 Avg Prop Armor Cover (%) . | . . . . . Naked Turns . | . . . . . Heaviest Build 15 | 14 15 14 15 4 Greatest Support 20 | 20 20 20 20 4 Greatest Overweight (x) 3 | . . . 3 1 Average Overweight (x) . | . . . . . Largest Inventory Capacity 8 | 8 8 8 8 5 Average Capacity 6 | 6 8 8 7 5 Most Carried 5 | 5 3 3 4 3 Average Carried 2 | 1 1 3 1 2 Final Capacity 8 | 8 8 8 5 5 Final Carried 3 | . 3 3 1 3 Class Distribution -------------------- 100% | Mutant Dominant Class ---------------- Mutant | -10/Materials Mutant | -10/Mines Mutant | -9/Materials Mutant | -9/Storage Resources | -11 -10 -10 -9 -9 ----------- Run | Yrd Mat Min Mat Sto Matter Collected 267 | 203 . 15 49 . Remotely . | . . . . . Salvage Created 49 | . . . 49 . Parts 8 | . . 2 6 . Haulers Intercepted . | . . . . . Recyclers Shooed . | . . . . . Parts Field Recycled . | . . . . . Retrieved Matter . | . . . . . Parts Self-Destructed . | . . . . . Prevented . | . . . . . Parts Restored . | . . . . . Kills | -11 -10 -10 -9 -9 ------- Run | Yrd Mat Min Mat Sto Combat Hostiles Destroyed 6 | . . 2 4 . Guns 4 | . . . 4 . Cannons 2 | . . 2 . . Classes Destroyed 1 | . . 1 . . Swarmer 6 | . . 2 4 . Best Kill Streak 4 | . . 2 4 . Combat Bots Only 4 | . . 2 4 . Max Kills in Single Turn 2 | . . 1 2 . Gunslinging . | . . . . . Exploded . | . . . . . Melee . | . . . . . Uniques/NPCs Destroyed . | . . . . . Combat | -11 -10 -10 -9 -9 -------- Run | Yrd Mat Min Mat Sto Hostile Shots Fired 151 | . . 15 125 11 Missed 45 | . . 4 37 4 Hits 106 | . . 11 88 7 Melee 3 | . . . 3 . Projectile 103 | . . 11 85 7 Critical Strikes 6 | . . 1 2 3 Damage Taken 1154 | . . 89 962 103 Core 436 | . . 25 322 89 Absorbed by Shields . | . . . . . Core Remaining (%) 95 | 100 . 90 . . Volleys Fired 26 | . 5 4 13 4 Largest 2 | . 2 2 2 1 Hottest 120 | . 40 120 120 56 Shots Fired 43 | . 10 8 21 4 Gun 35 | . 10 4 17 4 Cannon . | . . . . . Launcher . | . . . . . Special 8 | . . 4 4 . Kinetic 23 | . 10 4 9 . Thermal 12 | . . 4 4 4 Explosive . | . . . . . Electromagnetic 8 | . . . 8 . Robot Hit Streak 4 | . 2 1 4 . Robot Miss Streak 5 | . 5 3 4 . Penetration Max . | . . . . . Secondary Targets . | . . . . . Shots Hit Robots 16 | . 4 2 10 . Core Hits 8 | . 1 2 5 . Critical Kills . | . . . . . Critical Parts Destroyed . | . . . . . Critical Strikes . | . . . . . Melee Attacks . | . . . . . Impact . | . . . . . Slashing . | . . . . . Piercing . | . . . . . Sneak Attacks . | . . . . . Combat Hostiles . | . . . . . Follow-up Attacks . | . . . . . Damage Inflicted 241 | . 47 50 144 . Guns 165 | . 47 . 118 . Cannons . | . . . . . Explosions . | . . . . . Melee . | . . . . . Ramming 4 | . . 2 2 . Kinetic 120 | . 47 . 73 . Thermal 72 | . . 48 24 . Explosive . | . . . . . Electromagnetic 45 | . . . 45 . Impact . | . . . . . Slashing . | . . . . . Piercing . | . . . . . Highest Corruption 5 | . . . 5 5 Average Corruption 5 | . . . 5 5 Corruption Purged . | . . . . . Corruption Blocked . | . . . . . Effects 11 | . . . 2 9 Message Errors 3 | . . . 1 2 Matter Fused 3 | . . . 1 2 Energy Discharges 5 | . . . . 5 Overload Shots . | . . . . . Overflow Damage . | . . . . . Projectiles . | . . . . . Explosions . | . . . . . Melee . | . . . . . Knockbacks . | . . . . . Impact . | . . . . . Kinetic . | . . . . . Secondary . | . . . . . Self-Inflicted Damage 1 | . . . 1 . Shots . | . . . . . Rammed 1 | . . . 1 . Targets Rammed 4 | . . 3 1 . Kicked 3 | . . 3 . . Crushed . | . . . . . Highest Temperature 62 | . . 62 27 8 Average Temperature 14 | . . 26 8 4 Received Heat Transfer 276 | . . . 177 99 Siege Activations . | . . . . . Martial Activations . | . . . . . Shielding Activations . | . . . . . Robots Disrupted . | . . . . . Combat Hostiles . | . . . . . Robots Corrupted . | . . . . . Combat Hostiles . | . . . . . Parts Fried . | . . . . . Impact Corruptions . | . . . . . Robots Melted . | . . . . . Combat Hostiles . | . . . . . Parts Melted . | . . . . . Heat Transferred 150 | . . 100 50 . Parts Sabotaged . | . . . . . Parts Stolen . | . . . . . Parts Stripped . | . . . . . Power Chain Reactions . | . . . . . Alert | -11 -10 -10 -9 -9 ------- Run | Yrd Mat Min Mat Sto Maximum Alert Level . | . . . . . Low Security (%) 100 | 100 100 100 100 100 Level 1 . | . . . . . Level 2 . | . . . . . Level 3 . | . . . . . Level 4 . | . . . . . Level 5 . | . . . . . High Security . | . . . . . Max Security . | . . . . . Peak Influence 51 | . . 42 51 20 Initial 14 | . . . 12 14 Average 7 | . . 7 18 4 Influence Increases 248 | . . 52 151 45 Destroy 0b10 Robot/C 120 | . . 40 80 . Destroy Leader 20 | . . 10 10 . Successful Hack 15 | . . . . 15 Destroy Structure 3 | . . 2 1 . Partial Spotted 30 | . . . . 30 Lose Combat Pursuer 60 | . . . 60 . Influence Decreases 248 | . . 20 148 80 Entered New Map 41 | . . . 20 21 Time Decay 141 | . . 20 72 49 Lost Part 66 | . . . 56 10 Squads Dispatched 2 | . 1 . . 1 Investigation . | . . . . . Extermination . | . . . . . Reinforcement 2 | . 1 . . 1 Assault . | . . . . . Garrison . | . . . . . Intercept . | . . . . . Searches Triggered . | . . . . . Construction Impeded . | . . . . . Haulers Reinforced . | . . . . . Active Scanning Responses . | . . . . . Cargo Convoy Interrupts . | . . . . . Stealth | -11 -10 -10 -9 -9 --------- Run | Yrd Mat Min Mat Sto Distress Signals 1 | . . . . 1 Communications Jammed . | . . . . . Distress Signals . | . . . . . Times Spotted 27 | . 3 3 17 4 Peak Tracking Total 10 | . 1 3 10 6 Tactical Retreats 2 | . . . 2 . Traps | -11 -10 -10 -9 -9 ------- Run | Yrd Mat Min Mat Sto Traps Triggered . | . . . . . Indirectly . | . . . . . Trap Hack Attempts . | . . . . . Triggered . | . . . . . Disarmed . | . . . . . Reprogrammed . | . . . . . Reused . | . . . . . Traps Extracted . | . . . . . Installed . | . . . . . Triggered . | . . . . . Machines | -11 -10 -10 -9 -9 ---------- Run | Yrd Mat Min Mat Sto Machines Disabled . | . . . . . Max in Single Turn . | . . . . . Machines Repaired . | . . . . . Machines Dismantled . | . . . . . Machines Sabotaged . | . . . . . Overloaded Fab Kills . | . . . . . Hacking | -11 -10 -10 -9 -9 --------- Run | Yrd Mat Min Mat Sto Machines Accessed 6 | . . . . 6 Terminals 6 | . . . . 6 Fabricators . | . . . . . Repair Stations . | . . . . . Recycling Units . | . . . . . Scanalyzers . | . . . . . Garrison Access . | . . . . . Total Hacks 18 | . . . . 18 Successful 8 | . . . . 8 Failed 10 | . . . . 10 Catastrophic 2 | . . . . 2 Database Lockouts . | . . . . . Manual 5 | . . . . 5 Terminals 18 | . . . . 18 Fabricators . | . . . . . Repair Stations . | . . . . . Recycling Units . | . . . . . Scanalyzers . | . . . . . Garrison Access . | . . . . . Terminal Hacks 8 | . . . . 8 Prototype ID Bank 1 | . . . . 1 Open Door 1 | . . . . 1 Branch Access Points 1 | . . . . 1 Alert Level 2 | . . . . 2 Locate Traps 1 | . . . . 1 Extermination Status 1 | . . . . 1 Recall Investigation 1 | . . . . 1 Fabricator Hacks . | . . . . . Repair Station Hacks . | . . . . . Recycling Unit Hacks . | . . . . . Scanalyzer . | . . . . . Garrison Access Hacks . | . . . . . Unauthorized Hacks . | . . . . . Terminals . | . . . . . Fabricators . | . . . . . Repair Stations . | . . . . . Recycling Units . | . . . . . Scanalyzers . | . . . . . Garrison Access . | . . . . . Data Cores Recovered . | . . . . . Used . | . . . . . Hacking Detections 6 | . . . . 6 Full Trace Events . | . . . . . Feedback Events . | . . . . . Feedback Blocked . | . . . . . Robot Schematics Acquired . | . . . . . Robots Built . | . . . . . Authchips . | . . . . . Time . | . . . . . Total Robot Build Rating . | . . . . . Part Schematics Acquired . | . . . . . Parts Built . | . . . . . Authchips . | . . . . . Time . | . . . . . Total Part Build Rating . | . . . . . Part Studies Acquired . | . . . . . Parts Repaired . | . . . . . Time . | . . . . . Parts Recycled . | . . . . . Recycled Matter . | . . . . . Retrieved Matter . | . . . . . Retrieved Components . | . . . . . Parts Scanalyzed . | . . . . . Part Schematics Acquired . | . . . . . Parts Damaged . | . . . . . Bothacking | -11 -10 -10 -9 -9 ------------ Run | Yrd Mat Min Mat Sto Used RIF Installer . | . . . . . Robots Hacked . | . . . . . Non-combat . | . . . . . Combat . | . . . . . Robot Hacks Applied . | . . . . . Relay Couplers Released . | . . . . . Fabnet Peak Effective % . | . . . . . Robots Rewired . | . . . . . Allies Hacked . | . . . . . Hacks Repelled . | . . . . . Allies | -11 -10 -10 -9 -9 -------- Run | Yrd Mat Min Mat Sto Total Allies . | . . . . . Largest Group . | . . . . . Highest-Rated Group . | . . . . . Highest-Rated Ally . | . . . . . Total Orders . | . . . . . Ally Attacks . | . . . . . Total Damage . | . . . . . Kills . | . . . . . Allies Corrupted . | . . . . . Allies Melted . | . . . . . Intel | -11 -10 -10 -9 -9 ------- Run | Yrd Mat Min Mat Sto Active Infowar (turns) 567 | . 56 122 176 213 Sensors 213 | . . . . 213 Structural 354 | . 56 122 176 . ECM 49 | . . . . 49 Robot Analysis Total . | . . . . . Derelict Logs Recovered . | . . . . . Drone Launches . | . . . . . Drone Recoveries . | . . . . . Exploration | -11 -10 -10 -9 -9 ------------- Run | Yrd Mat Min Mat Sto Turns Passed 763 | 41 162 122 213 225 Spaces Moved 621 | 35 119 81 149 237 Core 93 | 17 . . 42 34 Treads . | . . . . . Legs 325 | 18 119 81 107 . Wheels . | . . . . . Hover . | . . . . . Flight 203 | . . . . 203 Fastest Speed 40 | 50 120 120 50 40 Average Speed 86 | 86 120 120 108 44 Slowest Speed 200 | 120 120 120 200 100 Overloaded Moves . | . . . . . Propulsion Burnouts . | . . . . . Robots Hopped 4 | . . . . 4 Potential Cave-ins . | . . . . . Cave-ins Triggered . | . . . . . Exploration Rate (%) 23 | 3 34 16 16 47 Regions Visited 4 Branch Regions 2 Pre-discovered Areas . | . . . . . Known Exits Taken 1 | . . . 1 . Unknown Exits Taken 3 | 1 1 1 . . Scrap Searched . | . . . . . Spaces Dug . | . . . . . Terrain Destroyed 3 | . . 2 1 . Melee . | . . . . . Projectile 3 | . . 2 1 . AOE . | . . . . . Terrain Rammed . | . . . . . Walls Destroyed . | . . . . . Machines Disabled . | . . . . . Actions | -11 -10 -10 -9 -9 --------- Run | Yrd Mat Min Mat Sto Total 781 | 46 128 88 171 348 Wait 98 | . . . . 98 Move 611 | 34 118 80 149 230 Hop 3 | . . . . 3 Pick Up 19 | 6 4 . 3 6 Fast Attach . | . . . . . Attach 16 | 6 1 . 5 4 Detach 1 | . . . . 1 Swap 2 | . . 1 . 1 Drop 2 | . . . 1 1 Fire 26 | . 5 4 13 4 Melee . | . . . . . Ram . | . . . . . Kick 3 | . . 3 . . Crush . | . . . . . Escape Stasis . | . . . . . Rewire . | . . . . . Trap . | . . . . . Miscellaneous . | . . . . . Route ------- -11/Scrapyard -10/Materials -10/Mines -9/Materials -9/Storage (discovered 1 exit: Rec) History --------- Turn | Location | Event 7 | -11/Scrapyard | Discovered new exit (range 15) 42 | -11/Scrapyard | Entered Materials 183 | -10/Materials | Discovered new exit (range 12) 204 | -10/Materials | Entered Mines 301 | -10/Mines | Build established: Mutant 317 | -10/Mines | Discovered new exit (range 8) 326 | -10/Mines | Entered Materials 326 | -9/Materials | Evolved 2 slots: Utility x2 515 | -9/Materials | Discovered new exit (range 16) 522 | -9/Materials | Identified exit to Storage 532 | -9/Materials | Core integrity fell below 50% 539 | -9/Materials | Core integrity fell below 20% 539 | -9/Materials | Entered Storage 568 | -9/Storage | Lost 7 parts (1p2n1u3w) 570 | -9/Storage | Identified exit to Recycling 764 | -9/Storage | Destroyed by Y-45 Defender with Beam Rifle Last Messages --------------- 00721_ K-01 Serf cleans the Compression Vault. 00734_ Two rows of pristine grunt class robots stand immobile, all facing the entryway as if waiting for something. 00734_ Connecting with Terminal... 00743_ System corrupted: Matter fused (-5). 00743_ Connecting with Terminal... >>Prototypes Downloading prototype IDs... Imp. Medium Laser Adv. Beam Rifle 00749_ Flight Unit destroyed. 00752_ Critical hit (Burn: +37). 00754_ ALERT: Hostiles spotted, dispatching reinforcements to Terminal S005. 00757_ Connecting with Door Terminal... 00758_ Critical hit (Burn: +37). 00761_ System corrupted: Energy discharge (-19). 00764_ Critical hit (Burn: +37). Map ----- +----------------------------------------------------+ | ????????####### + +?????? | | ????????# # # #?????? | | ????????# # # """ #?????? | | ????????# T# + """ #?????? | | ????????## ## # """ #?????? | | ?????????###+## # #?????? | | ???????????# / + #?????? | | ???????????# ###################### #?????? | | ???????????# #???###??????????????? #?????? | | ???????????# #??! #??????????????? ?????? | | ???????????# #?? ! #??????????????? ????? | | ???????????# ## !#??????????????? ????? | | ?#######???# # #??????????????? ???? | | ?# ???# + #?X????????????? ??? | | ?# !! ??# # #??????????????? ####??? | | ?# !! ??# # #????????????????#?????? | | ?# %## ######??????????????????????? | | ?#! x# ######+##+#######??????????? | | ?# "" x ???????? | | ?# "G X# Tx ???????? | | ?# "" # ##### ##X###??????????????? | | ?# ?######???# #???????????????????? | | ?# ######?????????## ##??????????????????? | | ???????????"####### #????x?????????????? | | ???????????" Y #??????????????????? | | ?????????>?" @ #??????????????????? | | ???????????"#T##### #??????????????????? | | ????????????###???######??????????????????? | | ??????????????????????????????????????????? | | ??????????????????????????????????????????? | | ??????????????????????????????????????????? | | ??????????????????????????????????????????? | | ??????????????????????????????????????????? | | ??????????????????????????????????????????? | | ??????????????????????????????????????????? | | | | | | | | | | | | | | | | | | | | | | | | | | | | | | | +----------------------------------------------------+ Best States ------------- Heat Dissipation 28 Energy Generation 10 Energy Capacity 250 Matter Stores 245 Matter Capacity 300 Sight Range 16 Robot Scan Range 14 Terrain Scan Density 10 ECM Strength 1 Utility Shielding 33 Evasion (%) 62 Item Schematics ----------------- None Robot Schematics ------------------ None Fabricated ------------ Nothing Repaired ---------- Nothing Studied --------- None Alien Tech Used ----------------- None Achievements -------------- None Challenges ------------ None Game ------ Seed WardroneEnhancedRailgun Manual? 0 Play Time 00:10:31 Cumulative 38.2 hours Start 2025.12.05 @ 17:17:07 End 2025.12.05 @ 17:28:06 Sessions 3 Manual Loads 0 Difficulty Rogue Special Mode None Game No. 51 Rogue 51 Adventurer 0 Explorer 0 Win Type - Total 0 Types 0/0/0/0/0/0/0/0/0/0 Lore% 17 Gallery% 32 Achievement% 20 Wizard Run 0 Options --------- Layout 1 ASCII 0 Keyboard 0 Movement Mouse Keybinds 0 Fullscreen 2 Font 32/SmallcapsGlow Map View 50x35 Zoom Use 0% Tactical HUD 1 Map Filters NONE Filters NONE Steam 1 RUN: aa0396a2-0966-4ba4-9d39-2bf363c2c35d